fUSD/lending_fUSD_20240526
["ID","MTS","AMOUNT","RATE_DAILY","PERIOD"]
[327938847,1716683435968,-490.094338,0.0002748,7]
[327938848,1716683435977,-380.463408,0.0002748,7]
[327938849,1716683435987,-152.701068,0.0002748,7]
[327938850,1716683435995,-151.0,0.0002748,7]
[327938851,1716683436005,-152.701068,0.0002748,7]
[327938852,1716683436014,-151.0,0.0002748,7]
[327938853,1716683436023,-367.726463,0.0002748,7]
[327938854,1716683436033,-151.0,0.0002748,7]
[327938855,1716683436042,-367.726463,0.0002748,7]
[327938856,1716683436052,-151.0,0.0002748,7]
[327938857,1716683436061,-151.0,0.0002748,7]
[327938858,1716683436070,-151.0,0.0002748,7]
[327938859,1716683436080,-496.890537,0.0002748,7]
[327938860,1716683436089,-496.890537,0.0002748,7]
[327938861,1716683436099,-151.0,0.0002748,7]
[327938862,1716683436108,-151.0,0.0002748,7]
[327938863,1716683436117,-505.872632,0.0002748,7]
[327938864,1716683436126,-505.872632,0.0002748,7]
[327938865,1716683436135,-669.464264,0.0002748,7]
[327938866,1716683436145,-669.464264,0.0002748,7]
[327938867,1716683436154,-1157.376353,0.0002748,7]
[327938868,1716683436163,-151.937742,0.00027481,7]
[327938869,1716683436172,-151.0,0.00027481,7]
[327938870,1716683436181,-293.344095,0.00027481,7]
[327938871,1716683436190,-293.344095,0.00027481,7]
[327938872,1716683436200,-397.216762,0.00027481,7]
[327938873,1716683436208,-397.216762,0.00027481,7]
[327938874,1716683436218,-166.536728,0.00027481,7]
[327938875,1716683436227,-166.536728,0.00027481,7]
[327938876,1716683436235,-177.496548,0.00027481,7]
[327938877,1716683436245,-177.496548,0.00027481,7]
[327938878,1716683436254,-151.0,0.00027481,7]
[327938879,1716683436264,-151.0,0.00027481,7]
[327938880,1716683436273,-151.0,0.00027481,7]
[327938881,1716683436282,-151.0,0.00027481,7]
[327938882,1716683436292,-1005.119299,0.00027481,7]
[327938883,1716683436301,-1005.119299,0.00027481,7]
[327938884,1716683436310,-151.0,0.00027481,7]
[327938885,1716683436319,-10029.0737066,0.00027481,2]
[327938886,1716683436329,-151.0,0.00027481,7]
[327938887,1716683436339,-222.056132,0.00027481,7]
[327938888,1716683436348,-151.0,0.00027481,7]
[327938889,1716683436358,-222.056132,0.00027481,7]
[327938890,1716683436368,-10563.85641455,0.00027481,2]
[327938891,1716683436383,-13748.32483707,0.00027481,2]
[327938897,1716683437630,-472.59666178,0.00024269,2]
[327938898,1716683437640,-150.0,0.00027094,2]
[327938899,1716683437650,-1157.376353,0.00027288,7]
[327938900,1716683437659,-543.02757684,0.0002748,7]
[327938901,1716683437672,-614.34877616,0.0002748,7]
[327938902,1716683437686,-2343.72141015,0.00027481,2]
[327938903,1716683437698,-602.584341,0.00027481,2]
[327938904,1716683437822,-161.33415186,0.00027398,2]
[327938905,1716683437832,-31947.49464073,0.00027481,2]
[327938906,1716683437842,-151.0,0.00027481,7]
[327938907,1716683437852,-151.0,0.00027481,7]
[327938908,1716683437862,-174.745494,0.00027481,7]
[327938909,1716683437871,-359.249574,0.00027481,7]
[327938910,1716683437881,-153.184119,0.00027481,7]
[327938911,1716683437890,-1527.862104,0.00027481,7]
[327938912,1716683437900,-359.249574,0.00027481,7]
[327938913,1716683437909,-1527.862104,0.00027481,7]
[327938914,1716683437918,-234.769158,0.00027481,7]
[327938915,1716683437927,-2174.7795203,0.00027481,2]
[327938916,1716683437936,-234.769158,0.00027481,7]
[327938917,1716683437945,-151.0,0.00027481,7]
[327938918,1716683437954,-151.0,0.00027481,7]
[327938919,1716683437963,-151.0,0.00027481,7]
[327938920,1716683437972,-13767.64823273,0.00027481,2]
[327938922,1716683441770,-809.0,0.00027094,2]
[327938923,1716683441780,-4642.09115462,0.00027398,2]
[327938924,1716683441790,-31608.40510487,0.00027481,2]
[327938925,1716683441799,-10000.0,0.00027486,2]
[327938926,1716683441808,-151.0,0.00027486,7]
[327938927,1716683441819,-151.0,0.00027486,7]
[327938928,1716683441830,-480.040928,0.00027486,7]
[327938929,1716683441840,-480.040928,0.00027486,7]
[327938930,1716683441850,-233.796108,0.00027486,7]
[327938931,1716683441861,-233.796108,0.00027486,7]
[327938932,1716683441871,-151.0,0.00027486,7]
[327938933,1716683441880,-151.0,0.00027486,7]
[327938934,1716683441889,-365.374327,0.00027486,7]
[327938935,1716683441901,-365.374327,0.00027486,7]
[327938936,1716683441911,-151.0,0.00027486,7]
[327938937,1716683441920,-151.0,0.00027486,7]
[327938938,1716683441929,-521.907443,0.00027486,7]
[327938939,1716683441939,-521.907443,0.00027486,7]
[327938940,1716683441948,-16760.91331764,0.0002749,3]
[327938941,1716683441959,-219.0,0.0002749,15]
[327938942,1716683441968,-150.5,0.0002749,15]
[327938943,1716683441978,-150.5,0.0002749,15]
[327938944,1716683441988,-1210.0,0.0002749,15]
[327938945,1716683441998,-1150.0,0.0002749,15]
[327938946,1716683442013,-269.106071,0.0002749,7]
[327938947,1716683442022,-151.0,0.0002749,7]
[327938948,1716683442032,-151.0,0.0002749,7]
[327938949,1716683442041,-154.248308,0.0002749,7]
[327938950,1716683442050,-151.0,0.0002749,7]
[327938951,1716683442060,-151.0,0.0002749,7]
[327938952,1716683442070,-151.0,0.0002749,7]
[327938953,1716683442079,-151.0,0.0002749,7]
[327938954,1716683442088,-151.0,0.0002749,7]
[327938955,1716683442097,-151.0,0.0002749,7]
[327938956,1716683442107,-151.0,0.0002749,7]
[327938957,1716683442117,-291.768439,0.0002749,7]
[327938958,1716683442127,-151.0,0.0002749,7]
[327938959,1716683442136,-680.65369,0.0002749,7]
[327938960,1716683442146,-151.0,0.0002749,7]
[327938961,1716683442155,-174.848392,0.0002749,7]
[327938962,1716683442164,-188.662306,0.0002749,7]
[327938963,1716683442174,-188.662306,0.0002749,7]
[327938964,1716683442183,-151.0,0.0002749,7]
[327938965,1716683442192,-248.72359787,0.0002749,7]
[327938966,1716683442201,-151.0,0.0002749,7]
[327938967,1716683442210,-196.306848,0.0002749,7]
[327938968,1716683442219,-186.341547,0.0002749,7]
[327938969,1716683442228,-186.341547,0.0002749,7]
[327938970,1716683442237,-151.0,0.0002749,7]
[327938971,1716683442246,-237.975136,0.0002749,7]
[327938972,1716683442256,-174.662371,0.0002749,7]
[327938973,1716683442266,-151.0,0.0002749,7]
[327938974,1716683442275,-174.662371,0.0002749,7]
[327938975,1716683442284,-182.675708,0.0002749,7]
[327938976,1716683442293,-153.982023,0.0002749,7]
[327938977,1716683442303,-151.0,0.0002749,7]
[327938978,1716683442312,-151.0,0.0002749,7]
[327938979,1716683442321,-151.0,0.0002749,7]
[327938980,1716683442330,-153.982023,0.0002749,7]
[327938981,1716683442340,-151.0,0.0002749,7]
[327938982,1716683442349,-151.0,0.0002749,7]
[327938983,1716683442359,-151.0,0.0002749,7]
[327938984,1716683442368,-151.0,0.0002749,7]
[327938986,1716683442377,-151.0,0.0002749,7]
[327938988,1716683442387,-151.0,0.0002749,7]
[327938990,1716683442396,-175.780979,0.0002749,7]
[327938992,1716683442406,-175.780979,0.0002749,7]
[327938994,1716683442415,-999.252238,0.0002749,7]
[327938996,1716683442424,-169.605002,0.0002749,7]
[327938998,1716683442433,-169.605002,0.0002749,7]
[327939000,1716683442443,-999.252238,0.0002749,7]
[327939001,1716683442452,-151.0,0.0002749,7]
[327939003,1716683442461,-151.0,0.0002749,7]
[327939005,1716683442471,-151.0,0.0002749,7]
[327939007,1716683442480,-151.0,0.0002749,7]
[327939009,1716683442489,-151.0,0.0002749,7]
[327939011,1716683442498,-151.0,0.0002749,7]
[327939012,1716683442508,-169.214586,0.0002749,7]
[327939014,1716683442519,-185.354764,0.0002749,7]
[327939016,1716683442528,-151.0,0.0002749,7]
[327939017,1716683442537,-185.354764,0.0002749,7]
[327939018,1716683442546,-490.094338,0.0002749,7]
[327939019,1716683442555,-380.463408,0.0002749,7]
[327939020,1716683442564,-490.094338,0.0002749,7]
[327939021,1716683442574,-380.463408,0.0002749,7]
[327939022,1716683442584,-152.701068,0.0002749,7]
[327939023,1716683442593,-152.701068,0.0002749,7]
[327939024,1716683442602,-151.0,0.0002749,7]
[327939025,1716683442611,-367.726463,0.0002749,7]
[327939026,1716683442621,-151.0,0.0002749,7]
[327939027,1716683442630,-367.726463,0.0002749,7]
[327939028,1716683442639,-151.0,0.0002749,7]
[327939029,1716683442648,-151.0,0.0002749,7]
[327939030,1716683442657,-151.0,0.0002749,7]
[327939031,1716683442666,-496.890537,0.0002749,7]
[327939032,1716683442675,-496.890537,0.0002749,7]
[327939033,1716683442685,-151.0,0.0002749,7]
[327939034,1716683442694,-151.0,0.0002749,7]
[327939035,1716683442703,-505.872632,0.0002749,7]
[327939036,1716683442712,-505.872632,0.0002749,7]
[327939037,1716683442721,-669.464264,0.0002749,7]
[327939038,1716683442730,-669.464264,0.0002749,7]
[327939039,1716683442739,-1157.376353,0.0002749,7]
[327939040,1716683442749,-1157.376353,0.0002749,7]
[327939041,1716683442759,-157.51349002,0.00027494,2]
[327939042,1716683442768,-3880.70724069,0.00027498,2]
[327939043,1716683442777,-185.19566842,0.00027498,2]
[327939044,1716683442787,-2748.24028286,0.00027498,2]
[327939045,1716683442796,-479.64218886,0.00027498,7]
[327939046,1716683442806,-452.0,0.00027499,5]
[327939047,1716683442816,-246.62401169,0.00027499,2]
[327939048,1716683442825,-1063.62545616,0.00027499,15]
[327939049,1716683442834,-1063.62545616,0.00027499,15]
[327939050,1716683442843,-1063.62545616,0.00027499,15]
[327939051,1716683442853,-1063.62545616,0.00027499,15]
[327939052,1716683442862,-1063.62545616,0.00027499,15]
[327939053,1716683442871,-1063.62545616,0.00027499,15]
[327939054,1716683442880,-1063.62545614,0.00027499,15]
[327939055,1716683442890,-259.92014461,0.00027499,2]
[327939056,1716683442899,-151.0,0.00027499,7]
[327939057,1716683442908,-359.249574,0.00027499,7]
[327939058,1716683442917,-359.249574,0.00027499,7]
[327939059,1716683442926,-1527.862104,0.00027499,7]
[327939060,1716683442936,-1527.862104,0.00027499,7]
[327939061,1716683442944,-234.769158,0.00027499,7]
[327939062,1716683442954,-234.769158,0.00027499,7]
[327939063,1716683442963,-285.005186,0.00027499,7]
[327939064,1716683442972,-151.0,0.00027499,7]
[327939065,1716683442981,-18385.19333156,0.000275,9]
[327939066,1716683442990,-398740.63956906,0.000275,5]
[327939069,1716683443695,-6134.73681133,0.000275,5]
[327939071,1716683443714,-4395.75536144,0.000275,5]
[327939076,1716683443812,-445.0,0.00027094,2]
[327939077,1716683443822,-1803.24107835,0.000275,5]
[327939079,1716683444300,-5607.57055296,0.000275,5]
[327939080,1716683444312,-4203.50300215,0.000275,5]
[327939081,1716683444328,-112916.22720716,0.000275,5]
[327939082,1716683444340,-24526.4133895,0.000275,5]
[327939083,1716683444355,-1356.30670095,0.000275,5]
[327939084,1716683444381,-775.08045318,0.000275,5]
[327939085,1716683444392,-365.48546363,0.000275,5]
[327939086,1716683444403,-630.87041203,0.000275,5]
[327939087,1716683444415,-453.11481869,0.000275,5]
[327939089,1716683445578,-339.85302779,0.00027093,2]
[327939090,1716683445591,-184.06703497,0.00027093,2]
[327939091,1716683445602,-150.01,0.0002748,2]
[327939092,1716683445612,-1956.47017309,0.000275,5]
[327939093,1716683445633,-344.31000002,0.000275,5]
[327939098,1716683900014,403.415074,0.00031,120]
[327939099,1716683911305,1000.0,0.00031,120]
[327939118,1716684631739,-151.41,0.00013973,2]
[327939120,1716684631748,-515.4,0.00020166,3]
[327939122,1716684631758,-380.61676983,0.00020696,3]
[327939123,1716684631770,-134.78323017,0.00020696,3]
[327939124,1716684631782,-2114.21366484,0.000209,2]
[327939125,1716684631793,-289.3455407,0.000209,2]
[327939126,1716684631819,-241.44079446,0.000209,2]
[327939127,1716684631829,-121.80173094,0.000209,2]
[327939128,1716684631840,-645.19826906,0.000209,2]
[327939129,1716684631850,-151.41,0.00021209,2]
[327939130,1716684631859,-515.4,0.00021226,3]
[327939131,1716684631869,-150.0,0.00021726,2]
[327939132,1716684631878,-374.7657294,0.00021755,3]
[327939133,1716684631891,-140.6342706,0.00021755,3]
[327939134,1716684631900,-156.24709475,0.00022153,2]
[327939135,1716684631910,-153.57465642,0.0002224,2]
[327939136,1716684631920,-708.18,0.00022253,2]
[327939137,1716684631930,-515.4,0.00022285,3]
[327939138,1716684631939,-151.48187481,0.00022611,2]
[327939139,1716684631949,-515.4,0.00022814,3]
[327939140,1716684631958,-153.24373513,0.00022993,2]
[327939141,1716684631967,-155.34582745,0.00023089,2]
[327939142,1716684631976,-152.58490756,0.00023162,2]
[327939143,1716684631985,-515.4,0.00023344,3]
[327939144,1716684631994,-206.0,0.0002356,2]
[327939145,1716684632004,-151.48187481,0.00023633,2]
[327939146,1716684632014,-152.58490756,0.00023772,2]
[327939147,1716684632025,-242.48542879,0.00023874,5]
[327939148,1716684632037,-272.91457121,0.00023874,5]
[327939149,1716684632047,-864.74,0.00023976,2]
[327939150,1716684632056,-472.59666178,0.00024,2]
[327939151,1716684632065,-400.89736901,0.00024017,2]
[327939152,1716684632076,-79.10263099,0.00024017,2]
[327939153,1716684632086,-250.0,0.00024144,2]
[327939154,1716684632095,-250.0,0.00024146,2]
[327939155,1716684632105,-250.0,0.00024147,2]
[327939156,1716684632114,-496.04260901,0.00024203,2]
[327939158,1716684632140,-3.95739099,0.00024203,2]
[327939159,1716684632149,-206.0,0.0002422,2]
[327939160,1716684632159,-520.0,0.00024227,2]
[327939161,1716684632168,-515.4,0.00024403,5]
[327939162,1716684632182,-178.89,0.00024423,2]
[327939163,1716684632192,-200.0,0.0002443,2]
[327939164,1716684632201,-708.18,0.00024517,2]
[327939165,1716684632211,-1391.9228,0.00024885,2]
[327939166,1716684632223,-206.0,0.0002489,2]
[327939167,1716684632232,-515.4,0.00024933,5]
[327939168,1716684632242,-927.24854719,0.00025,2]
[327939169,1716684632251,-155.0,0.00025,2]
[327939170,1716684632263,-2442.79990918,0.00025,2]
[327939171,1716684632275,-155.0,0.00025107,2]
[327939172,1716684632284,-224.42312563,0.00025107,2]
[327939173,1716684632293,-155.0,0.00025107,2]
[327939174,1716684632302,-321.15490403,0.00025108,2]
[327939175,1716684632312,-864.74,0.00025175,2]
[327939176,1716684632322,-152.6,0.00025457,2]
[327939177,1716684632331,-515.4,0.00025462,5]
[327939178,1716684632341,-399.169476,0.000255,2]
[327939179,1716684632351,-206.0,0.0002555,2]
[327939180,1716684632361,-150.4563769,0.00025868,2]
[327939181,1716684632370,-163.36,0.0002589,2]
[327939182,1716684632379,-515.4,0.00025992,5]
[327939183,1716684632388,-153.24373514,0.00026187,2]
[327939184,1716684632398,-206.0,0.0002622,2]
[327939185,1716684632407,-191.291094,0.00026228,2]
[327939186,1716684632416,-864.74,0.00026374,2]
[327939187,1716684632425,-159.81845639,0.00026468,2]
[327939188,1716684632435,-180.0,0.00026598,2]
[327939189,1716684632444,-153.50552387,0.00026622,2]
[327939190,1716684632453,-708.18,0.00026781,2]
[327939191,1716684632463,-206.0,0.0002689,2]
[327939192,1716684632473,-1044.2508505,0.0002695,2]
[327939193,1716684632482,-443.18031102,0.00026999,2]
[327939194,1716684632492,-38000.41,0.00027,2]
[327939195,1716684632502,-155.34582745,0.00027014,2]
[327939196,1716684632511,-480.0,0.00027019,2]
[327939197,1716684632520,-583.994799,0.000271,2]
[327939198,1716684632530,-590.522,0.00027125,2]
[327939199,1716684632539,-5122.0,0.00027125,2]
[327939200,1716684632548,-1463.0,0.00027125,2]
[327939201,1716684632558,-1059.0,0.00027125,2]
[327939202,1716684632568,-376.71182161,0.00027224,2]
[327939203,1716684632577,-200.0,0.00027229,2]
[327939204,1716684632586,-500.0,0.00027229,2]
[327939205,1716684632596,-520.0,0.00027256,2]
[327939206,1716684632605,-153.57465642,0.00027279,2]
[327939207,1716684632615,-1000.0,0.0002738,2]
[327939208,1716684632624,-3652.29583648,0.0002738,2]
[327939209,1716684632636,-278.60878409,0.0002738,2]
[327939210,1716684632647,-1115.8023317,0.0002738,2]
[327939211,1716684632666,-3499.02376926,0.0002738,2]
[327939212,1716684632677,-449.84035098,0.0002738,2]
[327939213,1716684632692,-603.38328281,0.0002738,2]
[327939214,1716684632707,-401.04564468,0.0002738,2]
[327939215,1716684632716,-227.1731,0.00027388,2]
[327939216,1716684632726,-7439.35397167,0.00027388,2]
[327939217,1716684632736,-5096.22565075,0.00027388,2]
[327939218,1716684632745,-805.18519156,0.0002739,2]
[327939219,1716684632755,-162.76924044,0.000274,2]
[327939220,1716684632764,-1100.92888006,0.000274,2]
[327939221,1716684632774,-1073.31861472,0.000274,2]
[327939222,1716684632975,-280.85203042,0.000274,2]
[327939226,1716684637710,-12407.24193571,0.000274,2]
[327939227,1716684637721,-319.18401733,0.000274,2]
[327939228,1716684637731,-150.0,0.000274,5]
[327939229,1716684637740,-198.0,0.00027477,15]
[327939230,1716684637750,-198.0,0.00027487,15]
[327939231,1716684637759,-14503.32005071,0.00027488,2]
[327939232,1716684637970,-719.70991839,0.00027488,2]
[327939233,1716684637985,-3482.97896661,0.00027488,2]
[327939234,1716684640340,-3827.72949949,0.00027488,2]
[327939235,1716684640351,-19774.19642504,0.00027488,2]
[327939236,1716684640363,-3501.81200366,0.00027488,2]
[327939237,1716684640477,-9417.0797708,0.00027488,2]
[327939238,1716684640489,-1048.582763,0.00027488,2]
[327939239,1716684640500,-339.90794079,0.00027488,2]
[327939240,1716684640513,-6411.23863618,0.00027488,2]
[327939241,1716684640557,-455.24103001,0.00027488,2]
[327939242,1716684640569,-549.80271798,0.00027488,2]
[327939243,1716684640581,-1050.51565051,0.00027488,2]
[327939244,1716684641162,-16639.68910573,0.00027488,2]
[327939245,1716684641173,-81954.6958309,0.00027488,2]
[327939246,1716684641185,-2174.1214369,0.00027488,2]
[327939247,1716684641195,-2598.4955191,0.00027488,2]
[327939248,1716684641204,-1041.2599793,0.00027488,2]
[327939249,1716684641215,-3871.8500539,0.00027488,2]
[327939250,1716684641234,-150.7,0.0002749,2]
[327939251,1716684641245,-150.7,0.0002749,2]
[327939252,1716684641256,-150.7,0.0002749,2]
[327939253,1716684641266,-150.7,0.0002749,2]
[327939254,1716684641276,-150.7,0.0002749,2]
[327939255,1716684641288,-150.7,0.0002749,2]
[327939256,1716684641298,-150.7,0.0002749,2]
[327939257,1716684641308,-198.0,0.00027497,15]
[327939258,1716684641317,-150.01,0.00027498,2]
[327939259,1716684641328,-433.1400003,0.00027498,2]
[327939260,1716684641338,-3630.57062029,0.00027498,2]
[327939261,1716684641347,-614.19569904,0.00027499,2]
[327939262,1716684641357,-300.0,0.00027499,2]
[327939263,1716684641367,-3000.0,0.00027499,2]
[327939264,1716684641377,-406.0,0.000275,5]
[327939265,1716684641387,-34192.59666578,0.000275,9]
[327939266,1716684641397,-284411.97708502,0.000275,5]
[327939267,1716684641958,-64148.06451461,0.000275,5]
[327939268,1716684641970,-406.71444962,0.000275,5]
[327939269,1716684641982,-789.09709592,0.000275,5]
[327939270,1716684642008,-435.67082283,0.000275,5]
[327939271,1716684642020,-14695.69462396,0.000275,5]
[327939272,1716684642833,-150.0,0.00027125,2]
[327939273,1716684642843,-308842.53904884,0.000275,5]
[327939274,1716684643762,-528521.01155513,0.000275,5]
[327939275,1716684643779,-398.83620363,0.000275,5]
[327939276,1716684643792,-5136.19379802,0.000275,5]
[327939277,1716684643804,-1074.0139849,0.000275,5]
[327939278,1716684643816,-2376.37203227,0.000275,5]
[327939279,1716684643829,-629.23,0.000275,5]
[327939280,1716684644328,-7017.2,0.000275,5]
[327939281,1716684644343,-4223.88782054,0.000275,5]
[327939282,1716684644356,-883.3099993,0.000275,5]
[327939283,1716684644368,-1704.87413917,0.000275,5]
[327939284,1716684644380,-1900.24289999,0.000275,5]
[327939285,1716684645914,-155.0,0.00026936,2]
[327939286,1716684645925,-155.0,0.00027486,2]
[327939287,1716684645935,-155.0,0.00027487,2]
[327939288,1716684645946,-2115.60211348,0.000275,5]
[327939289,1716684645958,-16269.95313176,0.000275,5]
[327939290,1716684645969,-35885.226265,0.000275,5]
[327939291,1716684645980,-1018.3,0.000275,5]
[327939292,1716684645991,-57730.93597077,0.000275,5]
[327939293,1716684646003,-3972.0,0.000275,5]
[327939294,1716684646014,-510.56952255,0.000275,5]
[327939295,1716684646026,-20721.70171759,0.000275,5]
[327939296,1716684646038,-660.02,0.000275,5]
[327939297,1716684646050,-4788.38967729,0.000275,5]
[327939298,1716684646066,-5710.75474301,0.000275,5]
[327939299,1716684646078,-677.99999947,0.000275,5]
[327939300,1716684646089,-383.87296915,0.000275,5]
[327939301,1716684646102,-1215.60604231,0.000275,5]
[327939302,1716684646228,-1227.69,0.000275,5]
[327939303,1716684646240,-674.79429573,0.000275,5]
[327939304,1716684646252,-387.53754655,0.000275,5]
[327939305,1716684646267,-794.89183922,0.000275,5]
[327939306,1716684646285,-8888.26322677,0.000275,5]
[327939307,1716684646315,-489.02686996,0.000275,5]
[327939308,1716684646325,-4666.27831828,0.000275,5]
[327939309,1716684646337,-793.86960772,0.000275,5]
[327939310,1716684646349,-3655.64205628,0.000275,5]
[327939311,1716684646361,-1458.83968283,0.000275,5]
[327939312,1716684646374,-358.2385076,0.000275,5]
[327939313,1716684646420,-1014.75723147,0.000275,5]
[327939314,1716684646432,-1757.99426359,0.000275,5]
[327939315,1716684646491,-295.25514135,0.000275,5]
[327939346,1716685832026,-155.0,0.00013969,2]
[327939348,1716685832040,-152.32,0.00013973,2]
[327939350,1716685832049,-1050.0,0.00021,2]
[327939352,1716685832059,-151.0,0.00022614,3]
[327939353,1716685832068,-145.83501389,0.00022898,2]
[327939354,1716685832153,-510.15498611,0.00022898,2]
[327939355,1716685832162,-1100.0,0.00023,2]
[327939356,1716685832172,-151.0,0.00023184,3]
[327939357,1716685832181,-151.0,0.00023753,5]
[327939358,1716685832191,-472.59666178,0.00024,2]
[327939359,1716685832200,-151.0,0.00024323,5]
[327939360,1716685832209,-150.4563769,0.0002443,2]
[327939361,1716685832219,-250.0,0.00024507,2]
[327939362,1716685832228,-447.83,0.00024531,2]
[327939363,1716685832238,-250.0,0.00024552,2]
[327939364,1716685832247,-153.7849766,0.00024712,2]
[327939365,1716685832256,-312.0,0.00024789,2]
[327939366,1716685832266,-250.0,0.00024789,2]
[327939367,1716685832276,-345.89,0.00024835,2]
[327939368,1716685832286,-688.0,0.00024858,2]
[327939369,1716685832295,-151.0,0.00024893,5]
[327939370,1716685832304,-178.89,0.00024998,2]
[327939371,1716685832314,-927.24854719,0.00025,2]
[327939372,1716685832323,-155.0,0.00025,2]
[327939373,1716685832332,-655.99,0.00025162,2]
[327939374,1716685832341,-265.10453941,0.00025328,7]
[327939375,1716685832353,-1000.3062,0.000254,2]
[327939376,1716685832362,-399.169476,0.000255,2]
[327939377,1716685832372,-155.18080574,0.0002553,2]
[327939378,1716685832381,-153.78497661,0.00025685,2]
[327939379,1716685832391,-163.36,0.0002589,2]
[327939380,1716685832400,-345.89,0.00026076,2]
[327939381,1716685832409,-152.4176735,0.00026393,2]
[327939382,1716685832419,-406.41446044,0.00026799,2]
[327939383,1716685832428,-18754.3574617,0.000268,3]
[327939385,1716685832452,-1713.30000046,0.000268,3]
[327939402,1716685837984,-162.64609781,0.00013972,2]
[327939403,1716685837994,-100.00402028,0.00024322,2]
[327939404,1716685838006,-372.5926415,0.00024322,2]
[327939405,1716685838015,-154.75,0.00024744,2]
[327939406,1716685838024,-286.3073085,0.000268,3]
[327939407,1716685838048,-313.27,0.000268,3]
[327939408,1716685838067,-2306.41368267,0.000268,3]
[327939409,1716685838079,-1765.0,0.000268,3]
[327939410,1716685838096,-1573.41555,0.000268,3]
[327939411,1716685838125,-653.55531824,0.000268,3]
[327939412,1716685838152,-7214.73959698,0.000268,3]
[327939413,1716685838194,-901.19631038,0.000268,3]
[327939414,1716685838231,-1524.53646198,0.000268,3]
[327939416,1716685838364,-26921.04453382,0.000268,3]
[327939418,1716685838376,-1940.94509564,0.000268,3]
[327939420,1716685838387,-7969.17193469,0.000268,3]
[327939422,1716685838398,-3131.87472,0.000268,3]
[327939424,1716685838409,-400.0,0.000268,3]
[327939432,1716685841147,-964.57084715,0.000268,3]
[327939433,1716685841176,-22098.97487558,0.000268,3]
[327939434,1716685841185,-1003.60983799,0.0002695,2]
[327939435,1716685841195,-154.3637095,0.00026991,2]
[327939436,1716685841205,-150.0,0.000271,2]
[327939437,1716685841214,-153.729,0.00027125,2]
[327939438,1716685841224,-180.0,0.0002722,2]
[327939439,1716685841233,-200.0,0.00027279,2]
[327939440,1716685841243,-500.0,0.00027279,2]
[327939441,1716685841254,-150.0,0.00027288,2]
[327939442,1716685841264,-150.0,0.00027288,2]
[327939443,1716685841273,-150.0,0.00027288,2]
[327939444,1716685841283,-150.0,0.00027288,2]
[327939445,1716685841292,-150.0,0.00027288,2]
[327939446,1716685841302,-345.89,0.00027318,2]
[327939447,1716685841312,-4586.60308563,0.00027387,2]
[327939448,1716685841322,-273.3032,0.00027387,2]
[327939449,1716685841331,-805.18519156,0.0002739,2]
[327939450,1716685841342,-377.6647,0.000274,2]
[327939451,1716685841352,-963.31277,0.000274,2]
[327939452,1716685841363,-2500.0,0.000274,2]
[327939453,1716685841372,-319.18401733,0.000274,2]
[327939454,1716685841381,-150.0,0.000274,5]
[327939455,1716685841391,-655.99,0.00027426,2]
[327939456,1716685841400,-95386.2644793,0.00027487,2]
[327939457,1716685841410,-805.2734072,0.00027487,2]
[327939458,1716685841419,-466.8273441,0.00027487,2]
[327939459,1716685841428,-2616.6507468,0.00027493,2]
[327939460,1716685841438,-4798.7174544,0.00027493,2]
[327939461,1716685841447,-183.98245559,0.00027498,2]
[327939462,1716685841456,-433.1400003,0.00027498,2]
[327939463,1716685841465,-224.19152914,0.00027499,2]
[327939464,1716685841475,-1050.19942002,0.00027499,15]
[327939465,1716685841484,-300.0,0.00027499,2]
[327939466,1716685841493,-2874.2991,0.00027499,2]